bitfinex/quotes_SOLUSD_20240607
["timestamp","ask_amount","ask_price","bid_price","bid_amount"]
[1717781011600,2.2082,167.56,167.53,21.9348]
[1717781011796,2.2082,167.56,167.53,15.8139]
[1717781012005,2.2082,167.56,167.54,6.0791]
[1717781013702,4.4158,167.58,167.54,6.0791]
[1717781013879,2.2082,167.56,167.54,6.0791]
[1717781014288,2.2081,167.57,167.54,6.0791]
[1717781014910,2.2081,167.57,167.54,8.2875]
[1717781015100,2.2081,167.57,167.54,6.0791]
[1717781015639,2.2079,167.58,167.55,21.7087]
[1717781015800,2.2079,167.58,167.56,6.5863]
[1717781016011,2.208,167.57,167.56,6.5863]
[1717781016208,6.623,167.6,167.53,2.2084]
[1717781016209,2.2076,167.6,167.57,16.5766]
[1717781016406,2.2076,167.6,167.58,6.5863]
[1717781016607,11.0369,167.62,167.58,6.5863]
[1717781016809,2.2079,167.58,167.56,6.6259]
[1717781017422,11.0395,167.58,167.53,6.6259]
[1717781018023,2.2082,167.56,167.53,8.8344]
[1717781018192,4.4158,167.58,167.53,8.8344]
[1717781018605,2.2082,167.56,167.53,8.8344]
[1717781018834,2.208,167.57,167.54,8.8305]
[1717781019011,2.208,167.57,167.54,6.6221]
[1717781019211,2.2083,167.55,167.51,16.5165]
[1717781019410,2.2082,167.56,167.52,8.8307]
[1717781019921,2.2082,167.56,167.53,8.7625]
[1717781020634,2.2082,167.56,167.54,6.554]
[1717781020839,2.2081,167.57,167.54,6.554]
[1717781021008,2.2081,167.56,167.54,6.554]
[1717781021208,2.2082,167.55,167.54,6.554]
[1717781022024,2.2082,167.56,167.54,6.554]
[1717781022920,2.2081,167.57,167.54,6.554]
[1717781023100,2.208,167.57,167.54,8.7623]
[1717781023307,2.2079,167.58,167.54,8.7623]
[1717781023508,11.0383,167.6,167.54,8.7623]
[1717781023509,2.208,167.57,167.54,8.7623]
[1717781023724,2.208,167.57,167.54,6.554]
[1717781025528,2.2079,167.58,167.54,6.554]
[1717781025826,2.2079,167.58,167.54,8.7623]
[1717781026015,2.208,167.57,167.54,8.7623]
[1717781026611,2.208,167.57,167.54,6.554]
[1717781027017,2.2082,167.56,167.52,8.5983]
[1717781027230,2.2082,167.56,167.53,2.2085]
[1717781027411,4.4158,167.58,167.52,6.3898]
[1717781027412,2.2082,167.55,167.52,8.5984]
[1717781028031,2.2087,167.52,167.49,15.9423]
[1717781028233,2.2086,167.53,167.49,24.5958]
[1717781028724,19.8737,167.56,167.5,2.2089]
[1717781028935,6.625,167.55,167.48,2.209]
[1717781029135,2.2087,167.52,167.48,2.2092]
[1717781029536,2.2088,167.51,167.47,2.2092]
[1717781029740,2.209,167.5,167.46,8.8515]
[1717781030024,11.0431,167.53,167.46,8.8515]
[1717781030229,2.209,167.49,167.45,2.2095]
[1717781031733,2.209,167.5,167.46,2.2094]
[1717781031916,15.459,167.54,167.43,4.4196]
[1717781031917,2.2088,167.51,167.47,2.2093]
[1717781032313,2.2089,167.5,167.46,2.2094]
[1717781033038,2.2089,167.5,167.47,2.2093]
[1717781033211,2.2089,167.5,167.46,2.2094]
[1717781034532,2.2088,167.51,167.48,6.5144]
[1717781034848,2.2089,167.51,167.47,2.2092]
[1717781035210,6.6252,167.55,167.48,2.2091]
[1717781035211,2.2087,167.52,167.48,2.2091]
[1717781035821,4.4169,167.54,167.49,2.209]
[1717781036137,2.2086,167.53,167.49,2.209]
[1717781036523,2.2086,167.52,167.49,2.209]
[1717781036735,2.2086,167.52,167.48,2.2091]
[1717781038345,4.4166,167.55,167.49,2.209]
[1717781038554,2.2086,167.53,167.49,2.209]
[1717781039747,2.2086,167.53,167.5,2.2089]
[1717781040147,2.2086,167.53,167.49,2.209]
[1717781040336,2.2086,167.53,167.5,2.2089]
[1717781040530,2.2086,167.53,167.49,2.209]
[1717781041042,70.25058625,167.61,167.45,25.0489]
[1717781041354,70.25058625,167.61,167.48,11.046]
[1717781041355,11.0402,167.57,167.48,11.046]
[1717781041553,6.624,167.58,167.49,11.0452]
[1717781041753,2.2084,167.54,167.5,8.4862]
[1717781042242,2.2085,167.53,167.5,6.2773]
[1717781043057,2.2085,167.54,167.5,8.4862]
[1717781043860,2.2085,167.54,167.51,2.2088]
[1717781044359,2.2082,167.55,167.52,2.2086]
[1717781045052,2.2082,167.55,167.51,2.2087]
[1717781045254,2.2084,167.54,167.5,8.4861]
[1717781045435,2.2083,167.55,167.51,8.2201]
[1717781046851,2.2082,167.55,167.52,2.2086]
[1717781047041,2.2082,167.55,167.52,8.22]
[1717781048043,2.2082,167.56,167.54,6.3]
[1717781048245,2.2082,167.56,167.55,6.3]
[1717781048438,15.766,167.64,167.55,6.3]
[1717781048439,15.4532,167.61,167.55,6.3]
[1717781048660,2.2075,167.61,167.6,6.3]
[1717781049566,2.2074,167.62,167.6,6.3]
[1717781049764,2.2075,167.61,167.6,6.3]
[1717781050063,2.2075,167.61,167.57,2.2079]
[1717781050567,2.2075,167.61,167.57,8.5492]
[1717781050869,2.2075,167.61,167.58,2.2078]
[1717781051441,6.6213,167.64,167.6,2.2076]
[1717781051442,2.2071,167.64,167.6,2.2076]
[1717781051660,2.2072,167.63,167.59,2.2077]
[1717781051852,2.2071,167.64,167.6,2.2076]
[1717781052152,2.2072,167.63,167.59,2.2077]
[1717781052566,2.2072,167.63,167.59,8.2726]
[1717781053661,2.207,167.65,167.61,2.2073]
[1717781053855,2.207,167.65,167.61,8.2722]
[1717781054056,2.2069,167.66,167.62,8.407]
[1717781055060,2.2069,167.65,167.62,6.1997]
[1717781056069,6.6189,167.71,167.64,6.0954]
[1717781056288,2.2066,167.68,167.65,6.0954]
[1717781056583,2.2065,167.69,167.65,8.3023]
[1717781056779,6.6182,167.72,167.65,6.0954]
[1717781056984,2.2067,167.67,167.65,6.0954]
[1717781057463,2.2066,167.68,167.65,6.0954]
[1717781058154,12.7294,167.77,167.6,6.4574]
[1717781058358,2.2072,167.64,167.6,22.7213]
[1717781058556,46.41723933,167.76,167.6,24.9288]
[1717781058757,2.207,167.65,167.61,2.2074]
[1717781059074,4.4132,167.68,167.6,22.7213]
[1717781059075,6.62,167.68,167.6,22.7213]
[1717781059274,2.2071,167.64,167.6,22.7213]
[1717781059571,2.2071,167.64,167.6,24.9289]
[1717781059789,2.207,167.65,167.61,8.7361]
[1717781059954,2.2068,167.66,167.62,8.736]
[1717781060551,2.2067,167.67,167.63,2.2072]
[1717781060767,2.2068,167.66,167.62,8.736]
[1717781061076,2.2068,167.66,167.63,6.4194]
[1717781061378,2.2067,167.67,167.63,18.5631]
[1717781061551,2.2067,167.67,167.64,6.3753]
[1717781062085,2.2068,167.66,167.64,6.3753]
[1717781062656,2.2067,167.67,167.64,6.3753]
[1717781063080,2.2066,167.68,167.64,18.5629]
[1717781063262,2.2066,167.68,167.65,6.3753]
[1717781063661,2.2067,167.67,167.65,6.3753]
[1717781063863,2.2066,167.68,167.65,6.3753]
[1717781064564,2.2067,167.67,167.65,6.3753]
[1717781064762,2.2066,167.68,167.65,6.3753]
[1717781064968,2.2064,167.69,167.65,8.5822]
[1717781065859,2.2066,167.68,167.65,8.5822]
[1717781066061,2.2067,167.67,167.65,6.3753]
[1717781066476,2.2066,167.68,167.65,6.3753]
[1717781066783,2.2064,167.69,167.65,8.5821]
[1717781067085,2.2065,167.68,167.65,8.5821]
[1717781067576,2.2065,167.69,167.66,2.2068]
[1717781067782,2.2066,167.68,167.65,6.3753]
[1717781068284,2.2067,167.67,167.65,6.3753]
[1717781068786,2.2066,167.68,167.65,8.5822]
[1717781069674,2.2066,167.68,167.65,6.3753]
[1717781070379,2.2067,167.67,167.65,6.3753]
[1717781070589,2.2067,167.67,167.63,2.2071]
[1717781070876,2.2067,167.67,167.63,8.2396]
[1717781071264,2.2067,167.67,167.64,2.2071]
[1717781071663,6.20653437,167.76,167.6,16.1463]
[1717781071880,2.2069,167.66,167.64,6.3]
[1717781072378,2.2069,167.66,167.62,2.2073]
[1717781072868,2.2069,167.66,167.64,6.3]
[1717781073074,2.2069,167.65,167.61,2.2074]
[1717781073389,2.2069,167.65,167.63,6.3]
[1717781073891,2.2068,167.66,167.63,6.3]
[1717781074077,2.2068,167.66,167.63,8.5072]
[1717781074589,2.2068,167.66,167.64,6.3]
[1717781074883,2.2067,167.67,167.65,6.3]
[1717781075057,2.2066,167.68,167.66,6.3]
[1717781075389,2.2066,167.68,167.67,6.3]
[1717781075696,2.2067,167.67,167.66,6.3]
[1717781077971,2.2067,167.67,167.63,2.2071]
[1717781078170,2.2067,167.67,167.66,6.3]
[1717781078693,2.2067,167.67,167.65,6.3]
[1717781078877,6.20653437,167.76,167.66,6.3]
[1717781079090,2.2066,167.68,167.64,2.207]
[1717781079290,2.2066,167.68,167.64,6.1788]
[1717781079480,2.2066,167.68,167.67,6.3]
[1717781079662,2.2066,167.68,167.66,6.3]
[1717781080393,2.2067,167.67,167.66,6.3]
[1717781081089,2.2065,167.69,167.66,6.3]
[1717781081389,2.2066,167.68,167.67,6.3]
[1717781083995,6.3,167.69,167.6,6.1191]
[1717781084187,2.207,167.65,167.6,8.3266]
[1717781084401,2.2072,167.63,167.6,6.1191]
[1717781084581,2.2072,167.63,167.58,27.4078]
[1717781084783,11.0338,167.67,167.57,2.208]
[1717781084784,2.2074,167.62,167.57,2.208]
[1717781084994,2.2075,167.61,167.57,2.208]
[1717781085370,2.2074,167.62,167.6,6.3]
[1717781085612,2.2074,167.62,167.57,2.208]
[1717781085902,6.137,167.64,167.59,6.3]
[1717781086119,6.137,167.64,167.53,15.469]
[1717781086120,6.1647,167.68,167.63,6.3]
[1717781086273,2.207,167.65,167.63,6.3]
[1717781086472,6.1647,167.68,167.58,8.5077]
[1717781086473,2.2072,167.63,167.58,8.5077]
[1717781086705,2.207,167.65,167.59,6.4022]
[1717781086905,2.207,167.65,167.64,6.3]
[1717781087598,2.2071,167.64,167.6,2.2075]
[1717781087796,2.2071,167.64,167.63,6.3]
[1717781088007,2.207,167.65,167.63,6.3]
[1717781088600,2.2071,167.64,167.63,6.3]
[1717781088905,2.2072,167.63,167.59,2.2077]
[1717781089068,2.2071,167.64,167.62,6.3]
[1717781089398,10.577,167.72,167.63,6.3]
[1717781089600,2.2067,167.67,167.62,2.2073]
[1717781089775,2.2067,167.67,167.66,6.3]
[1717781090080,2.207,167.65,167.6,21.0875]
[1717781090281,2.2068,167.66,167.61,8.3]
[1717781090902,2.207,167.65,167.61,8.3]
[1717781091098,2.207,167.65,167.61,6.0926]
[1717781091310,2.207,167.65,167.61,8.3]
[1717781091974,2.207,167.65,167.62,6.5597]
[1717781092175,2.2068,167.66,167.62,8.767]
[1717781092373,4.4129,167.69,167.62,8.767]
[1717781092584,2.2067,167.67,167.63,2.2072]
[1717781092793,2.2066,167.68,167.62,6.5597]
[1717781093174,2.2067,167.67,167.63,8.2931]
[1717781093379,2.2066,167.68,167.63,8.2931]
[1717781093576,2.2067,167.67,167.63,6.086]
[1717781093794,2.2068,167.66,167.63,6.086]
[1717781094100,4.4132,167.68,167.6,16.4172]
[1717781094283,2.207,167.65,167.6,37.5047]
[1717781094475,2.2074,167.62,167.58,6.2252]
[1717781094799,2.2074,167.62,167.58,8.433]
[1717781095299,2.2072,167.63,167.58,8.433]
[1717781095493,2.2072,167.63,167.59,2.2077]
[1717781095878,4.4142,167.64,167.57,2.2079]
[1717781096182,2.2076,167.6,167.56,2.2081]
[1717781096387,2.2078,167.59,167.55,2.2082]
[1717781097099,2.2076,167.6,167.55,2.2082]
[1717781097304,2.2078,167.59,167.54,2.2083]
[1717781097599,2.2078,167.59,167.55,2.2082]
[1717781099390,2.2076,167.6,167.56,2.2081]
[1717781099598,4.4151,167.61,167.53,2.2084]
[1717781099808,2.2079,167.58,167.54,2.2084]
[1717781100103,2.2077,167.59,167.54,2.2084]
[1717781100299,2.2077,167.59,167.55,2.2082]
[1717781100489,2.2079,167.58,167.51,31.0438]
[1717781100684,2.2081,167.57,167.52,2.2086]
[1717781100895,2.2081,167.57,167.53,2.2085]
[1717781101480,2.2079,167.58,167.53,2.2085]
[1717781102013,2.208,167.57,167.53,2.2085]
[1717781102305,2.2082,167.56,167.51,2.2087]
[1717781102481,2.2082,167.56,167.52,2.2086]
[1717781104711,2.208,167.57,167.52,2.2086]
[1717781104918,2.208,167.57,167.53,2.2085]
[1717781105206,2.2081,167.56,167.52,2.2086]
[1717781105792,2.2081,167.56,167.51,2.2087]
[1717781106110,6.18541691,167.62,167.48,18.671]
[1717781106111,2.2086,167.53,167.48,18.671]
[1717781106325,2.2084,167.54,167.49,2.209]
[1717781106724,2.2083,167.55,167.51,2.2088]
[1717781107212,2.2083,167.55,167.5,2.2088]
[1717781107389,2.2084,167.55,167.5,2.2088]
[1717781108611,2.2084,167.54,167.49,2.209]
[1717781108912,2.2087,167.52,167.47,2.2092]
[1717781109106,2.2087,167.52,167.48,2.2091]
[1717781109291,2.2086,167.53,167.48,2.2091]
[1717781109486,2.2086,167.53,167.49,2.209]
[1717781109711,2.2087,167.52,167.46,6.0914]
[1717781109895,2.2087,167.52,167.51,6.31]
[1717781110216,2.2087,167.52,167.5,6.31]
[1717781110406,11.0435,167.52,167.46,6.0914]
[1717781110602,11.0435,167.52,167.48,6.31]
[1717781110603,4.4175,167.52,167.48,6.31]
[1717781110814,2.2088,167.51,167.48,6.31]
[1717781111015,2.2087,167.52,167.5,6.31]
[1717781111306,2.2088,167.51,167.49,6.31]
[1717781111507,11.0422,167.54,167.5,6.31]
[1717781111818,8.8311,167.59,167.53,6.31]
[1717781111993,2.2079,167.58,167.57,6.31]
[1717781112316,15.4525,167.61,167.57,6.31]
[1717781112317,2.2075,167.61,167.57,6.31]
[1717781112499,13.2431,167.64,167.6,6.31]
[1717781112922,4.4145,167.63,167.53,6.452]
[1717781113214,4.4145,167.63,167.51,31.6685]
[1717781113215,2.2081,167.57,167.56,6.31]
[1717781113411,2.2081,167.56,167.52,2.2086]
[1717781113589,2.2081,167.57,167.55,6.31]
[1717781113789,2.2079,167.58,167.56,6.31]
[1717781114013,2.2079,167.58,167.53,2.2085]
[1717781114197,4.4151,167.61,167.53,6.4387]
[1717781114198,2.208,167.57,167.53,6.4387]
[1717781114408,2.2082,167.56,167.51,24.8546]
[1717781115314,2.2082,167.56,167.51,22.6459]
[1717781115508,2.2082,167.56,167.51,24.8546]
[1717781115741,2.2081,167.57,167.52,8.3935]
[1717781115897,6.6218,167.63,167.53,6.1849]
[1717781116109,2.208,167.58,167.53,8.3933]
[1717781116412,2.2078,167.59,167.54,2.2083]
[1717781116601,11.0371,167.62,167.55,2.2082]
[1717781116800,6.5643,167.67,167.53,15.019]
[1717781116801,4.4143,167.64,167.53,15.019]
[1717781117007,6.5643,167.67,167.55,18.91]
[1717781117300,2.208,167.58,167.54,6.1849]
[1717781118415,6.5643,167.67,167.5,25.0999]
[1717781118712,2.2081,167.56,167.52,8.3985]
[1717781118912,11.0383,167.6,167.52,8.3985]
[1717781119106,2.208,167.57,167.52,8.3985]
[1717781119494,2.2081,167.56,167.52,6.1899]
[1717781119696,2.2083,167.55,167.52,6.1899]
[1717781120111,2.2082,167.56,167.52,6.1899]
[1717781120415,6.6238,167.58,167.49,17.4013]
[1717781120611,2.2084,167.54,167.49,15.1924]
[1717781120789,2.2084,167.54,167.49,23.9521]
[1717781121993,2.2083,167.55,167.5,2.2089]
[1717781122198,2.2084,167.54,167.49,23.9521]
[1717781122500,16.0069,167.63,167.47,6.3503]
[1717781122501,2.2088,167.51,167.47,6.3503]
[1717781123699,2.2088,167.51,167.46,2.2094]
[1717781124226,4.4171,167.53,167.45,2.2095]
[1717781124723,2.2088,167.51,167.45,2.2095]
[1717781125098,4.4171,167.53,167.45,2.2095]
[1717781125513,11.0429,167.53,167.45,2.2095]
[1717781126125,4.4174,167.52,167.43,6.1549]
[1717781126298,4.4174,167.52,167.44,2.2096]
[1717781127428,4.4176,167.51,167.43,8.3647]
[1717781127607,6.6266,167.51,167.42,2.2099]
[1717781128320,13.2525,167.52,167.43,2.2097]
[1717781128528,19.8786,167.52,167.41,4.4202]
[1717781128822,4.4172,167.53,167.45,2.2095]
[1717781129242,2.2088,167.51,167.46,2.2094]
[1717781129398,2.2088,167.51,167.39,24.5062]
[1717781129399,4.4166,167.55,167.44,17.1854]
[1717781129606,2.2087,167.52,167.47,2.2093]
[1717781129805,2.2085,167.53,167.48,8.5451]
[1717781130019,2.2087,167.52,167.48,6.336]
[1717781130220,2.2086,167.53,167.48,8.5452]
[1717781130502,2.2086,167.53,167.48,8.5451]
[1717781130702,2.2085,167.54,167.49,8.545]
[1717781130922,8.8326,167.57,167.5,2.2089]
[1717781130923,2.2083,167.55,167.5,2.2089]
[1717781131113,6.1429,167.6,167.5,2.2089]
[1717781131114,19.8693,167.6,167.5,18.91]
[1717781131441,2.2081,167.57,167.52,8.8124]
[1717781131604,2.2081,167.56,167.52,6.6038]
[1717781131804,2.208,167.57,167.52,8.8124]
[1717781132344,2.208,167.57,167.53,6.162]
[1717781132508,2.2079,167.58,167.54,6.162]
[1717781132842,13.2439,167.63,167.53,41.1777]
[1717781133026,2.2077,167.6,167.54,2.2083]
[1717781133321,2.2078,167.59,167.54,2.2083]
[1717781133522,2.2079,167.58,167.53,21.1185]
[1717781133727,2.2079,167.58,167.55,6.1582]
[1717781134105,2.2078,167.59,167.55,6.1582]
[1717781134417,2.2079,167.58,167.55,6.1582]
[1717781135230,2.208,167.57,167.55,6.1582]
[1717781135523,4.4152,167.6,167.55,6.1582]
[1717781135733,2.208,167.57,167.55,6.1582]
[1717781136123,2.2081,167.56,167.52,6.5876]
[1717781136324,6.6081,167.64,167.52,6.5876]
[1717781136529,6.6081,167.64,167.5,6.5876]
[1717781136719,6.6081,167.64,167.49,16.648]
[1717781136720,2.2087,167.52,167.49,16.648]
[1717781137330,2.2088,167.51,167.47,6.2327]
[1717781137526,2.2087,167.52,167.47,6.2327]
[1717781138127,2.2087,167.52,167.47,8.442]
[1717781138514,4.4169,167.54,167.47,6.2327]
[1717781138515,2.2088,167.51,167.47,6.2327]
[1717781139317,100.00708625,167.62,167.47,6.2327]
[1717781139525,4.4172,167.53,167.46,16.6045]
[1717781139738,11.0429,167.53,167.46,16.6045]
[1717781139933,2.2088,167.51,167.46,16.6045]
[1717781140126,4.4172,167.53,167.46,22.8102]
[1717781140441,2.2087,167.52,167.49,6.2057]
[1717781140616,2.2088,167.51,167.49,6.2057]
[1717781141132,4.4171,167.53,167.48,15.7839]
[1717781141337,4.4171,167.53,167.45,6.49]
[1717781141514,2.2088,167.51,167.47,6.49]
[1717781142133,2.2085,167.53,167.49,6.5495]
[1717781142352,11.0397,167.58,167.5,15.6054]
[1717781142658,11.0397,167.58,167.51,6.5495]
[1717781142659,2.2083,167.55,167.51,6.5495]
[1717781142862,4.4164,167.56,167.51,6.5495]
[1717781143040,2.2086,167.52,167.46,18.91]
[1717781143260,2.2086,167.52,167.47,2.2092]
[1717781143445,2.2086,167.52,167.48,24.0363]
[1717781143747,2.2086,167.52,167.49,6.2481]
[1717781144337,2.2088,167.51,167.49,6.2481]
[1717781145425,11.0423,167.54,167.49,6.2481]
[1717781145628,2.2087,167.52,167.49,6.2481]
[1717781146354,2.2086,167.53,167.49,6.2481]
[1717781146671,2.2087,167.52,167.48,2.2091]
[1717781146969,2.2087,167.52,167.5,6.0294]
[1717781149538,2.2088,167.51,167.5,6.0294]
[1717781149737,2.2087,167.52,167.5,6.0294]
[1717781149953,11.0415,167.55,167.5,6.0294]
[1717781150154,6.18423565,167.61,167.46,27.3275]
[1717781150459,2.2089,167.51,167.47,23.8882]
[1717781150762,2.2089,167.51,167.48,6.2082]
[1717781151151,2.2089,167.51,167.46,21.1194]
[1717781151453,6.18423565,167.61,167.44,8.4179]
[1717781151749,38.91,167.6,167.44,8.4179]
[1717781151947,38.91,167.6,167.45,2.2095]
[1717781152250,38.91,167.6,167.44,8.4178]
[1717781152955,11.0436,167.52,167.44,8.4178]
[1717781153134,6.6261,167.52,167.44,8.4178]
[1717781153629,11.0441,167.51,167.44,8.4178]
[1717781155567,8.8352,167.52,167.46,2.2094]
[1717781155870,13.2526,167.52,167.46,2.2094]
[1717781156171,13.2526,167.52,167.45,2.2095]
[1717781156966,4.4177,167.51,167.44,8.4178]
[1717781157265,11.0442,167.51,167.44,8.4178]
[1717781159238,6.6265,167.51,167.44,6.2082]
[1717781159648,6.6265,167.51,167.44,8.4178]
[1717781159856,13.2527,167.52,167.45,2.2096]
[1717781160054,19.8787,167.52,167.45,2.2096]
[1717781160261,11.0442,167.51,167.44,8.4178]
[1717781160462,1.83018109,167.49,167.45,21.7419]
[1717781160665,2.2092,167.48,167.45,21.7419]
[1717781163041,2.2091,167.49,167.45,21.7419]
[1717781163361,2.2091,167.49,167.45,23.9515]
[1717781164261,2.2086,167.53,167.48,2.2091]
[1717781164445,2.2086,167.53,167.47,6.576]
[1717781164446,2.2089,167.5,167.47,6.576]
[1717781164644,2.2089,167.5,167.47,21.8624]
[1717781165242,2.2089,167.5,167.48,6.6426]
[1717781165443,13.251,167.54,167.48,6.6426]
[1717781165780,13.251,167.54,167.45,4.4191]
[1717781165781,2.2086,167.53,167.5,6.1836]
[1717781166242,2.2086,167.53,167.5,16.1318]
[1717781166563,2.2084,167.54,167.51,6.3474]
[1717781166773,2.2085,167.53,167.51,6.3474]
[1717781166955,2.2086,167.52,167.51,6.3474]
[1717781167260,2.2086,167.53,167.51,6.3474]
[1717781167961,6.18906721,167.58,167.51,6.3474]
[1717781168164,2.2086,167.53,167.51,6.3474]
[1717781168368,2.2086,167.52,167.51,6.3474]
[1717781169437,2.2086,167.53,167.51,6.3474]
[1717781170166,2.2084,167.54,167.51,15.9916]
[1717781170366,2.2082,167.55,167.52,15.1889]
[1717781170572,2.2082,167.56,167.53,15.1889]
[1717781170858,10.60496721,167.58,167.53,21.1923]
[1717781171066,2.2084,167.54,167.51,6.1032]
[1717781171866,2.2083,167.55,167.53,6.1032]
[1717781172044,2.2082,167.56,167.53,6.1032]
[1717781172248,2.2079,167.58,167.54,6.1032]
[1717781172659,2.2078,167.59,167.54,8.3116]
[1717781172849,2.2079,167.58,167.54,8.3116]
[1717781173046,2.2078,167.59,167.55,6.6389]
[1717781173245,2.2079,167.58,167.55,6.6389]
[1717781173675,2.2081,167.56,167.55,6.6389]
[1717781173849,2.2081,167.56,167.52,16.6445]
[1717781174058,2.2081,167.56,167.53,6.3429]
[1717781174371,2.208,167.57,167.53,16.6445]
[1717781174552,2.208,167.57,167.54,6.3429]
[1717781175250,2.2079,167.58,167.54,6.3429]
[1717781175455,2.208,167.57,167.54,6.3429]
[1717781175670,2.2081,167.56,167.54,6.3429]
[1717781176473,2.2079,167.58,167.54,6.3429]
[1717781177869,2.2076,167.61,167.57,12.319]
[1717781178078,2.2076,167.6,167.57,12.319]
[1717781178288,2.2076,167.6,167.59,6.3]
[1717781178452,4.4153,167.6,167.54,15.9452]
[1717781178652,4.4158,167.58,167.5,17.4053]
[1717781178875,4.4161,167.57,167.52,6.3]
[1717781179067,2.2085,167.53,167.51,6.0826]
[1717781179263,2.2085,167.53,167.51,12.3826]
[1717781179468,2.2084,167.54,167.51,12.3826]
[1717781179681,2.2084,167.54,167.52,6.3]
[1717781179897,2.2084,167.54,167.51,6.3]
[1717781180076,15.1327,167.56,167.5,6.3]
[1717781180273,2.2085,167.53,167.51,6.3]
[1717781180668,2.2084,167.54,167.51,6.3]
[1717781180873,6.3,167.58,167.52,6.3]
[1717781181075,4.4154,167.6,167.51,6.1126]
[1717781181401,4.4152,167.61,167.57,6.3]
[1717781181583,2.2079,167.58,167.57,6.3]
[1717781181773,2.208,167.57,167.53,6.0785]
[1717781181974,2.2081,167.56,167.53,6.0785]
[1717781182273,2.208,167.57,167.53,6.0785]
[1717781182675,4.4155,167.59,167.53,6.0785]
[1717781182979,2.2081,167.57,167.54,6.2459]
[1717781183485,2.2079,167.58,167.54,6.2459]
[1717781183673,2.208,167.57,167.54,6.2459]
[1717781183879,2.2079,167.58,167.54,6.2459]
[1717781184095,19.867,167.62,167.55,6.1828]
[1717781184396,19.867,167.62,167.56,6.0913]
[1717781184397,2.2077,167.6,167.56,6.0913]
[1717781184588,2.2077,167.6,167.57,6.0913]
[1717781184788,2.2077,167.6,167.58,1.19207612]
[1717781185299,4.4148,167.62,167.57,6.0913]
[1717781185300,2.2077,167.59,167.57,6.0913]
[1717781186096,2.2077,167.59,167.57,7.28324718]
[1717781186811,2.2076,167.6,167.58,1.19225664]
[1717781187296,2.2075,167.61,167.58,1.19225664]
[1717781187682,2.2076,167.6,167.57,6.0913]
[1717781189006,13.2435,167.63,167.57,6.0913]
[1717781189007,2.2076,167.61,167.57,6.0913]
[1717781189299,2.2073,167.62,167.58,7.49387027]
[1717781189602,11.035,167.65,167.58,7.49387027]
[1717781189603,2.2075,167.61,167.58,7.49387027]
[1717781190099,2.2071,167.64,167.59,2.2077]
[1717781190295,4.4137,167.66,167.61,6.3341]
[1717781190498,4.4137,167.66,167.62,1.1921013]
[1717781190822,2.2072,167.64,167.61,6.3341]
[1717781191005,2.2072,167.63,167.61,6.3341]
[1717781193600,4.414,167.65,167.61,6.3341]
[1717781193780,2.2073,167.63,167.61,6.3341]
[1717781194077,2.2073,167.63,167.6,16.3759]
[1717781195301,2.2071,167.64,167.6,16.3759]
[1717781195508,2.2071,167.64,167.6,22.6828]
[1717781195694,2.2071,167.64,167.6,24.8904]
[1717781197192,19.8609,167.67,167.61,6.3439]
[1717781197384,2.207,167.65,167.61,6.3439]